{"text_format":"2","workbook":"xlsx","n_sheets":1,"sheets":["Table A2"],"not_rendered":{"charts":0,"images":0,"macros":0,"external_links":1,"defined_names":0,"comments":0,"pivot_tables":0},"unopened":[],"bounds":{"document_bytes":16777216,"sheet_cells":100000,"run_cost":"one","rows_first":2000,"rows_last":500,"rows_between":2000,"halvings":0,"cell_chars":16384,"cell_head_chars":4096},"cells_cut":0,"cells_raw":0,"read":"whole","date_system":"1900"}

{"sheet":"Table A2","index":0,"n_rows":46,"n_cols":6,"rows_kept":46,"cut":false,"hidden":false,"merged":[[43,0,43,5],[14,0,14,5],[0,0,0,5],[4,0,4,5],[5,0,5,5],[23,0,23,5],[29,0,29,5],[32,0,32,5],[35,0,35,5],[1,0,1,2]]}
["Table A2: Clean Cookstove Emissions, Efficiency, and Cost Initial Performance and Targets Summary"]
["Complete ALL relevant sections or indicate plan to obtain data"]
[]
["Parameter","Units","Initial (from Table A1)","Year 1 End","Year 2 End","Year 3 End"]
["Efficiency and Fuel Consumption of Technology"]
["Water Boiling Test (High power-cold start)"]
["Volume of water (5 or 2.5 liters are recommended)","liters",{"$f":"'[1]Table A1'!D9","v":0}]
["Time to boil","min",{"$f":"'[1]Table A1'!D10","v":0}]
["Temp-corrected time to boil Pot # 1","min",{"$f":"'[1]Table A1'!D11","v":0}]
["Burning rate","g/min",{"$f":"'[1]Table A1'!D12","v":0}]
["Thermal efficiency","%",{"$f":"'[1]Table A1'!D13","v":0}]
["Specific fuel consumption ","g/liter",{"$f":"'[1]Table A1'!D14","v":0}]
["Temp-corrected specific consumption ","g/liter",{"$f":"'[1]Table A1'!D15","v":0}]
["Firepower","watts",{"$f":"'[1]Table A1'!D16","v":0}]
["Water Boiling Test (High power-hot start)"]
["Volume of water (5 or 2.5 liters are recommended)","liters",{"$f":"'[1]Table A1'!D18","v":0}]
["Time to boil","min",{"$f":"'[1]Table A1'!D19","v":0}]
["Temp-corrected time to boil Pot # 1","min",{"$f":"'[1]Table A1'!D20","v":0}]
["Burning rate","g/min",{"$f":"'[1]Table A1'!D21","v":0}]
["Thermal efficiency","%",{"$f":"'[1]Table A1'!D22","v":0}]
["Specific fuel consumption ","g/liter",{"$f":"'[1]Table A1'!D23","v":0}]
["Temp-corrected specific consumption ","g/liter",{"$f":"'[1]Table A1'!D24","v":0}]
["Firepower","watts",{"$f":"'[1]Table A1'!D25","v":0}]
["Water Boiling Test (Low power)"]
["Burning rate","g/min",{"$f":"'[1]Table A1'!D27","v":0}]
["Specific fuel consumption ","g/liter",{"$f":"'[1]Table A1'!D28","v":0}]
["Specific Consumption","MJ/min/L",{"$f":"'[1]Table A1'!D29","v":0}]
["Firepower","watts",{"$f":"'[1]Table A1'!D30","v":0}]
["Turn down ratio","--",{"$f":"'[1]Table A1'!D31","v":0}]
["Controlled Cooking Test"]
["Specific fuel consumption","g/kg",{"$f":"'[1]Table A1'!D33","v":0}]
["Total cooking time","min",{"$f":"'[1]Table A1'!D34","v":0}]
["Kitchen Performance Test"]
["Daily energy use","MJ",{"$f":"'[1]Table A1'!D36","v":0}]
["Energy use per capita","MJ/person",{"$f":"'[1]Table A1'!D37","v":0}]
["Emissions of Baseline Technology"]
["CO emissions (WBT cold start)","g/MJ delivered (to\ncooking pot)",{"$f":"'[1]Table A1'!D39","v":0}]
["CO emissions (WBT hot start)","g/MJ delivered (to\ncooking pot)",{"$f":"'[1]Table A1'!D40","v":0}]
["CO emissions (WBT low power)","g/min/L",{"$f":"'[1]Table A1'!D41","v":0}]
["PM2.5 emissions (WBT cold start)","mg/MJ delivered (to\ncooking pot)",{"$f":"'[1]Table A1'!D42","v":0}]
["PM2.5 emissions (WBT hot start)","mg/MJ delivered (to\ncooking pot)",{"$f":"'[1]Table A1'!D43","v":0}]
["PM2.5 emissions (WBT low power)","mg/min/L",{"$f":"'[1]Table A1'!D44","v":0}]
["Total hydrocarbon emissions","g/MJ delivered (to\ncooking pot)",{"$f":"'[1]Table A1'!D45","v":0}]
["Costs and Safety"]
["Stove cost","US$",{"$f":"'[1]Table A1'!D47","v":0}]
["Safety","points",{"$f":"'[1]Table A1'!D48","v":0}]